bitfinex/quotes_ETHUSD_20251201
["timestamp","ask_amount","ask_price","bid_price","bid_amount"]
[1764632466882,0.2696,2814.5,2814.0,7.56282054]
[1764632467375,0.2696,2814.5,2814.1,0.6407]
[1764632467580,0.7549,2814.5,2814.0,7.10732054]
[1764632468376,0.7549,2814.5,2813.9,7.83316721]
[1764632468654,0.7549,2814.5,2814.0,0.4555]
[1764632469070,0.2696,2814.5,2814.0,0.4555]
[1764632469477,0.2696,2814.5,2814.1,0.1852]
[1764632469777,0.2696,2814.5,2813.9,11.38695376]
[1764632469983,0.7549,2814.5,2813.9,11.38695376]
[1764632470199,0.4853,2814.4,2813.8,3.55489792]
[1764632470503,0.88944213,2814.3,2814.0,3.55366027]
[1764632470707,0.4853,2814.4,2814.0,3.55366027]
[1764632470873,0.2717,2814.1,2814.0,3.55366027]
[1764632471306,0.565,2814.6,2814.3,0.4523]
[1764632472085,0.1849,2814.9,2814.5,0.4523]
[1764632472408,0.1849,2814.9,2814.5,4.0052262]
[1764632472409,1.2061,2814.9,2814.5,4.0052262]
[1764632472617,0.3005,2814.6,2814.5,3.5529262]
[1764632473080,0.1849,2814.9,2814.5,7.55825515]
[1764632473407,0.567,2815.1,2814.5,7.55825515]
[1764632473595,0.002,2815.1,2815.0,0.4523]
[1764632473800,0.3042,2814.6,2814.5,4.27852031]
[1764632474007,0.3042,2814.6,2814.5,3.5529262]
[1764632474519,0.6392,2814.8,2814.3,7.1065629]
[1764632474882,0.6392,2814.8,2814.3,7.5764629]
[1764632476899,0.183,2814.8,2814.3,7.5764629]
[1764632477518,0.183,2814.8,2814.3,7.1065629]
[1764632478522,0.4562,2815.0,2814.4,0.4699]
[1764632480149,0.4562,2815.0,2814.5,7.1060579]
[1764632480628,0.002,2815.1,2814.5,7.1060579]
[1764632480937,2.00071621,2815.1,2814.5,7.1060579]
[1764632481300,0.4562,2815.0,2814.5,7.1060579]
[1764632481528,0.4562,2815.0,2814.5,3.55302895]
[1764632481834,0.183,2814.9,2814.5,3.55302895]
[1764632482416,0.4562,2814.8,2814.3,7.1065629]
[1764632482801,0.4562,2814.8,2814.3,7.5764629]
[1764632484720,0.183,2814.9,2814.4,0.4699]
[1764632484923,2.00071621,2815.1,2814.4,0.4699]
[1764632485230,0.84507162,2815.0,2814.4,0.4699]
[1764632485410,0.183,2814.9,2814.4,0.4699]
[1764632485740,0.6392,2814.9,2814.4,0.4699]
[1764632485935,1.0030418,2814.9,2814.4,0.4699]
[1764632486135,1.0030418,2814.9,2814.3,3.55328145]
[1764632486136,0.3042,2814.5,2814.3,3.55328145]
[1764632486305,0.0045,2814.4,2814.3,3.55328145]
[1764632486510,0.4562,2814.7,2814.3,3.55328145]
[1764632486746,0.4562,2814.7,2814.3,7.5588629]
[1764632487809,0.3042,2814.4,2814.0,0.001]
[1764632488009,0.3012,2814.1,2814.0,3.55460233]
[1764632488445,0.7574,2814.1,2814.0,0.001]
[1764632488631,5.64427978,2814.1,2814.0,0.001]
[1764632488810,7.77525249,2814.1,2814.0,0.001]
[1764632489511,7.91774297,2814.1,2814.0,0.001]
[1764632491640,2.2624827,2814.1,2814.0,0.001]
[1764632491819,9.8307289,2814.1,2814.0,0.001]
[1764632492341,4.97463808,2814.1,2814.0,0.001]
[1764632495566,4.41063808,2814.1,2814.0,0.001]
[1764632495873,4.97463808,2814.1,2814.0,0.001]
[1764632496353,1.4211041,2814.1,2814.0,0.001]
[1764632496556,1.91855942,2814.1,2814.0,0.001]
[1764632496733,1.4211041,2814.1,2814.0,0.001]
[1764632497339,1.3214,2814.1,2814.0,0.001]
[1764632497534,1.2290418,2814.1,2814.0,0.001]
[1764632497743,6.8138418,2814.5,2814.0,4.03431164]
[1764632497970,0.2823,2814.1,2814.0,0.001]
[1764632498166,1.2101418,2814.1,2814.0,0.001]
[1764632498363,1.6865418,2814.1,2814.0,0.001]
[1764632500353,5.7640797,2814.1,2814.0,0.001]
[1764632504941,12.6195837,2814.1,2814.0,0.001]
[1764632505578,13.34517781,2814.1,2814.0,0.001]
[1764632506377,20.42887768,2814.1,2814.0,0.001]
[1764632507274,13.34517781,2814.1,2814.0,0.001]
[1764632512357,18.35769839,2814.1,2814.0,0.001]
[1764632513970,0.7693458,2813.9,2813.8,0.001]
[1764632514269,1.0332458,2813.9,2813.8,0.001]
[1764632514490,1.5278458,2813.9,2813.8,0.001]
[1764632515600,8.70343991,2813.9,2813.8,0.001]
[1764632517073,12.25722646,2813.9,2813.8,0.001]
[1764632517401,14.68173144,2813.9,2813.8,0.001]
[1764632520404,14.68173144,2813.9,2813.5,0.001]
[1764632520405,0.7693458,2813.6,2813.5,0.001]
[1764632520606,1.5933458,2813.6,2813.5,0.001]
[1764632520909,2.0902458,2813.6,2813.5,0.001]
[1764632521072,2.37182979,2813.6,2813.5,0.001]
[1764632521280,5.92599527,2813.6,2813.5,0.001]
[1764632522380,5.42909527,2813.6,2813.5,0.001]
[1764632523010,5.92599527,2813.6,2813.5,0.001]
[1764632525543,12.37599527,2813.6,2813.5,0.001]
[1764632526696,1.49493991,2813.5,2813.4,0.001]
[1764632526891,10.05659811,2813.5,2813.4,0.001]
[1764632527119,10.19914953,2813.5,2813.4,0.001]
[1764632527929,13.75344133,2813.5,2813.4,0.001]
[1764632529229,17.50144133,2813.5,2813.4,0.001]
[1764632530106,18.05906135,2813.5,2813.4,0.001]
[1764632531973,18.06106135,2813.5,2813.4,0.001]
[1764632533062,17.50344133,2813.5,2813.4,0.001]
[1764632535993,14.28044133,2813.5,2813.4,0.001]
[1764632539283,18.02844133,2813.5,2813.4,0.001]
[1764632540297,13.82354133,2813.5,2813.4,0.001]
[1764632540471,18.83863938,2813.5,2813.4,0.001]
[1764632541162,19.29553938,2813.5,2813.4,0.001]
[1764632542403,18.83863938,2813.5,2813.4,0.001]
[1764632543802,18.27363938,2813.5,2813.4,0.001]
[1764632544006,18.69608796,2813.5,2813.4,0.4668]
[1764632544189,18.68858796,2813.5,2813.4,0.4668]
[1764632545571,18.68858796,2813.5,2813.4,0.001]
[1764632546306,18.99218796,2813.5,2813.4,0.001]
[1764632547090,17.55748985,2813.5,2813.4,0.9235]
[1764632547290,18.28308396,2813.5,2813.4,0.9235]
[1764632547490,18.68858796,2813.5,2813.4,0.4668]
[1764632548414,19.04438796,2813.5,2813.4,0.4668]
[1764632548807,18.68858796,2813.5,2813.4,0.4668]
[1764632549182,18.99218796,2813.5,2813.4,0.001]
[1764632549591,19.44748796,2813.5,2813.4,0.001]
[1764632551218,18.99218796,2813.5,2813.4,0.001]
[1764632551415,12.99748796,2813.5,2813.4,0.001]
[1764632552423,13.14003226,2813.5,2813.4,0.001]
[1764632552625,12.99748796,2813.5,2813.4,0.001]
[1764632553141,12.54218796,2813.5,2813.4,0.001]
[1764632553723,12.99748796,2813.5,2813.4,0.001]
[1764632554998,12.54218796,2813.5,2813.4,0.001]
[1764632555823,12.99748796,2813.5,2813.4,0.001]
[1764632558124,13.14003836,2813.5,2813.4,0.001]
[1764632558428,11.81613836,2813.5,2813.4,0.451]
[1764632558734,12.38113836,2813.5,2813.4,0.451]
[1764632559037,12.23858796,2813.5,2813.4,0.451]
[1764632559528,12.52998796,2813.5,2813.4,0.001]
[1764632560213,12.99738796,2813.5,2813.4,0.001]
[1764632560616,12.52998796,2813.5,2813.4,0.001]
[1764632562034,12.98718796,2813.5,2813.4,0.001]
[1764632562340,13.1297348,2813.5,2813.4,0.001]
[1764632563511,12.6725348,2813.5,2813.4,0.001]
[1764632564237,19.5797348,2813.5,2813.4,0.001]
[1764632564938,19.1225348,2813.5,2813.4,0.001]
[1764632565542,18.2661348,2813.5,2813.4,0.9681]
[1764632565834,18.8311348,2813.5,2813.4,0.9681]
[1764632566840,18.8311348,2813.5,2813.4,0.4683]
[1764632567140,18.8311348,2813.5,2813.4,0.001]
[1764632568444,18.98226245,2813.5,2813.4,0.001]
[1764632568613,0.710304,2813.2,2813.0,0.001]
[1764632568818,12.24019131,2813.1,2813.0,0.001]
[1764632569344,12.38275746,2813.1,2813.0,0.001]
[1764632570048,15.93755465,2813.1,2813.0,0.001]
[1764632571533,15.93755465,2813.1,2812.9,0.001]
[1764632571534,1.13109811,2813.0,2812.6,0.001]
[1764632571742,11.14768731,2812.8,2812.6,0.001]
[1764632572419,11.29025905,2812.8,2812.6,0.001]
[1764632572827,0.7693458,2812.6,2812.0,0.4998]
[1764632573148,8.43724192,2812.6,2812.0,0.4998]
[1764632573331,12.49247106,2812.6,2812.1,0.6833]
[1764632574327,12.49247106,2812.6,2812.2,0.4998]
[1764632578147,12.16027106,2812.6,2812.5,0.4683]
[1764632578944,12.16027106,2812.6,2812.5,0.9681]
[1764632581336,12.16027106,2812.6,2812.5,0.4683]
[1764632581657,6.73224536,2812.6,2812.5,0.9681]
[1764632581834,12.16027106,2812.6,2812.5,0.9681]
[1764632582021,12.16027106,2812.6,2812.5,0.4683]
[1764632582220,12.16027106,2812.6,2812.5,0.9681]
[1764632582651,5.55016905,2812.6,2812.5,0.9681]
[1764632582963,10.97819475,2812.6,2812.5,0.9681]
[1764632585149,6.51746161,2812.6,2812.5,0.9681]
[1764632585460,10.07289075,2812.6,2812.5,0.9681]
[1764632587977,5.2268675,2812.6,2812.5,0.9681]
[1764632588164,0.565,2812.6,2812.5,0.9681]
[1764632588367,0.9288418,2812.6,2812.5,0.9681]
[1764632588565,0.002,2812.8,2812.5,0.9681]
[1764632588873,0.9288418,2812.7,2812.6,0.4998]
[1764632589076,0.565,2812.7,2812.6,0.4998]
[1764632589453,5.4280257,2812.7,2812.6,0.9671]
[1764632592785,0.9288418,2812.7,2812.6,0.9671]
[1764632593080,0.565,2812.7,2812.6,0.9671]
[1764632593291,5.7918675,2812.7,2812.6,0.9671]
[1764632593449,9.34717023,2812.7,2812.6,0.9671]
[1764632594373,5.7918675,2812.7,2812.6,0.9671]
[1764632596491,11.28258225,2812.7,2812.6,0.4673]
[1764632596647,11.28258225,2812.7,2812.5,0.001]
[1764632596648,1.49493991,2812.6,2812.5,0.001]
[1764632596844,1.08943591,2812.6,2812.5,0.001]
[1764632597049,8.68863709,2812.6,2812.5,0.4666]
[1764632597248,8.91713709,2812.6,2812.5,0.001]
[1764632598087,8.91973709,2812.6,2812.5,0.001]
[1764632598378,11.67906623,2812.6,2812.5,0.9514]
[1764632598549,12.24406623,2812.6,2812.5,0.9514]
[1764632598962,13.19546623,2812.6,2812.5,0.001]
[1764632599343,13.19746623,2812.6,2812.5,0.4666]
[1764632599782,19.64746623,2812.6,2812.5,0.4666]
[1764632600172,20.13456623,2812.6,2812.5,0.001]
[1764632600352,17.95136812,2812.6,2812.5,0.4666]
[1764632600554,18.92187212,2812.6,2812.5,0.4666]
[1764632600750,19.64746623,2812.6,2812.5,0.4666]
[1764632604679,19.64746623,2812.6,2812.5,0.001]
[1764632604883,19.87596623,2812.6,2812.5,0.001]
[1764632606165,19.64746623,2812.6,2812.5,0.001]
[1764632610288,19.87856623,2812.6,2812.5,0.001]
[1764632610693,17.04431711,2812.5,2812.2,0.001]
[1764632610986,1.13109811,2811.6,2810.7,0.4714]
[1764632611175,4.8630257,2811.2,2810.7,0.4714]
[1764632611385,4.8630257,2811.0,2810.7,0.4714]
[1764632611587,0.0997041,2810.9,2810.7,0.4714]
[1764632611960,0.3638418,2810.9,2810.8,0.4957]
[1764632612486,0.3638418,2810.9,2810.8,0.9671]
[1764632612655,1.16949169,2810.9,2810.8,0.9671]
[1764632613085,0.0997041,2810.9,2810.8,0.9671]
[1764632613388,0.565,2810.9,2810.8,0.9671]
[1764632615489,0.9288418,2810.9,2810.8,0.9671]
[1764632616468,4.8630257,2811.3,2810.8,1.42060538]
[1764632616683,0.405504,2811.7,2810.8,1.42060538]
[1764632616684,4.8630257,2811.1,2810.9,0.4714]
[1764632616887,0.3638418,2811.0,2810.9,0.4714]
[1764632617181,5.2268675,2811.1,2811.0,0.4957]
[1764632617564,5.2268675,2811.1,2811.0,0.9671]
[1764632617992,4.8630257,2811.1,2811.0,0.9671]
[1764632618688,5.2268675,2811.1,2811.0,0.9671]
[1764632619306,4.27795724,2813.4,2811.0,0.9671]
[1764632619307,0.55799875,2812.2,2811.0,4.97713299]
[1764632619599,0.3638418,2811.3,2811.1,1.1662]
[1764632619764,0.565,2811.2,2811.1,1.1662]
[1764632619963,0.565,2811.2,2811.1,0.1991]
[1764632620209,5.5277298,2811.2,2811.1,0.6948]
[1764632620509,5.4280257,2811.2,2811.1,1.1662]
[1764632622391,0.565,2811.2,2811.1,1.1662]
[1764632623100,3.92054823,2811.6,2811.1,1.1662]
[1764632623303,0.565,2811.5,2811.1,0.1991]
[1764632623803,0.565,2811.5,2811.4,0.4989]
[1764632624307,0.565,2811.5,2811.4,0.9927]
[1764632627376,0.9288418,2811.5,2811.4,0.9927]
[1764632628307,4.485662,2811.5,2811.4,0.9927]
[1764632628510,0.3638418,2810.9,2810.8,0.001]
[1764632628708,0.9288418,2810.9,2810.8,0.4948]
[1764632629007,0.9288418,2810.9,2810.8,0.9937]
[1764632629008,0.565,2810.9,2810.8,0.9937]
[1764632630508,0.9288418,2810.9,2810.8,0.4999]
[1764632630727,1.37746111,2810.9,2810.8,0.4999]
[1764632631009,0.3638418,2810.9,2810.8,0.9937]
[1764632631215,0.565,2810.9,2810.8,0.9937]
[1764632632890,0.565,2810.9,2810.8,4.55139803]
[1764632633096,0.565,2810.9,2810.8,5.36230882]
[1764632634384,0.565,2811.2,2810.8,8.92001481]
[1764632634592,6.45,2811.5,2811.4,0.6897]
[1764632634786,0.565,2811.5,2811.4,0.6897]
[1764632634986,0.565,2811.5,2811.4,1.1835]
[1764632637030,6.45,2811.6,2811.4,1.1835]
[1764632637324,6.45,2811.6,2811.5,0.9927]
[1764632637616,7.015,2811.6,2811.5,0.4989]
[1764632637793,7.015,2811.6,2811.5,0.9927]
[1764632639313,10.57169369,2811.6,2811.5,0.4989]
[1764632639483,10.93553549,2811.6,2811.5,0.4989]
[1764632639900,7.3788418,2811.6,2811.5,0.4989]
[1764632640726,7.3788418,2811.6,2811.5,0.9927]
[1764632642423,7.015,2811.6,2811.5,0.9927]
[1764632642996,0.72759411,2811.9,2811.5,0.9927]
[1764632642997,0.002,2811.9,2811.5,5.02356396]
[1764632643197,0.002,2811.9,2811.4,3.74763978]
[1764632643198,0.565,2811.8,2811.4,0.1908]
[1764632643409,0.3638418,2811.6,2811.5,0.4938]
[1764632643788,0.9288418,2811.8,2811.5,0.9927]
[1764632644002,0.9288418,2811.8,2811.7,0.4989]
[1764632644421,0.9288418,2811.8,2811.7,0.9927]
[1764632646024,0.565,2811.8,2811.7,0.9927]
[1764632646923,0.002,2811.9,2811.7,1.44764941]
[1764632647091,0.567,2811.9,2811.8,0.9927]
[1764632648607,0.567,2811.9,2811.8,4.54914071]
[1764632649103,0.567,2811.9,2811.8,0.9927]
[1764632649601,0.567,2811.9,2811.8,4.54914071]
[1764632650606,0.002,2811.9,2811.8,4.54914071]
[1764632650807,0.002,2811.9,2811.8,5.00405478]
[1764632651624,0.002,2811.9,2811.8,5.00505478]
[1764632652125,0.002,2811.9,2811.8,4.55014071]
[1764632654103,0.002,2811.9,2811.8,0.9937]
[1764632654427,0.3448041,2811.9,2811.8,0.001]
[1764632654630,0.8414041,2811.9,2811.8,0.001]
[1764632654804,5.39570621,2811.9,2811.8,0.001]
[1764632655005,0.99998788,2811.9,2811.8,0.9681]
[1764632655202,0.002,2811.9,2811.8,0.4849]
[1764632657403,0.3658418,2811.9,2811.8,0.4849]
[1764632657599,0.2451,2811.9,2811.8,0.001]
[1764632658633,6.12372947,2811.9,2811.8,0.001]
[1764632658804,7.50374159,2811.9,2811.8,0.001]
[1764632659004,11.06005582,2811.9,2811.8,0.001]
[1764632660229,1.38201212,2811.9,2811.8,0.4849]
[1764632660403,0.566,2811.9,2811.8,0.4849]
[1764632660606,0.566,2811.9,2811.8,0.9681]
[1764632661634,0.002,2811.9,2811.8,0.9681]
[1764632661938,0.566,2811.9,2811.8,0.9681]
[1764632662315,0.002,2811.9,2811.8,4.52454071]
[1764632662503,0.002,2811.9,2811.8,5.33264448]
[1764632665039,4.16525603,2811.9,2811.8,0.001]
[1764632665215,0.6089418,2811.9,2811.8,0.001]
[1764632665414,0.3658418,2811.9,2811.8,0.001]
[1764632666021,0.567,2811.9,2811.8,0.4849]
[1764632666437,0.002,2811.9,2811.8,0.4849]
[1764632666640,0.567,2811.9,2811.8,0.4849]
[1764632666849,0.567,2811.9,2811.8,0.9681]
[1764632667852,0.002,2811.9,2811.8,4.52454071]
[1764632668118,0.002,2811.9,2811.8,5.33265108]
[1764632670315,0.002,2811.9,2811.8,1.77621037]
[1764632670516,0.002,2811.9,2811.8,5.33265108]
[1764632671542,0.002,2811.9,2811.8,1.77621037]
[1764632671921,0.002,2811.9,2811.8,0.9681]
[1764632672139,0.002,2811.9,2811.8,4.52454071]
[1764632674148,0.002,2811.9,2811.8,4.52904071]
[1764632678423,0.002,2811.9,2811.8,4.52904071]
[1764632679454,0.002,2811.9,2811.8,4.04134071]
[1764632679820,0.002,2811.9,2811.8,4.52904071]
[1764632680019,0.6435418,2811.9,2811.8,0.001]
[1764632680224,0.2797,2811.9,2811.8,0.001]
[1764632680418,0.002,2811.9,2811.8,0.9587]
[1764632681158,0.566,2811.9,2811.8,0.9587]
[1764632682954,0.566,2811.9,2811.8,4.51514071]
[1764632683355,0.002,2811.9,2811.8,5.32231035]
[1764632685938,0.4694,2811.9,2811.8,0.001]
[1764632686138,0.002,2811.9,2811.8,0.4584]
[1764632687019,0.002,2811.9,2811.8,4.48854071]
[1764632687418,0.002,2811.9,2811.8,0.9321]
[1764632687949,0.002,2811.9,2811.8,4.48854071]
[1764632688275,0.002,2811.9,2811.8,0.4584]
[1764632688955,0.002,2811.9,2811.8,4.01484071]
[1764632690059,0.002,2811.9,2811.8,0.4584]
[1764632690358,0.002,2811.9,2811.8,4.48854071]
[1764632691339,0.002,2811.9,2811.8,4.01484071]
[1764632692358,0.002,2811.9,2811.8,4.48854071]
[1764632692659,0.002,2811.9,2811.8,5.29305086]
[1764632700669,0.2457,2811.9,2811.8,0.001]
[1764632700973,0.7417,2811.9,2811.8,0.001]
[1764632701361,4.66185603,2811.9,2811.8,0.001]
[1764632702654,5.38745014,2811.9,2811.8,0.001]
[1764632704770,5.79295414,2811.9,2811.8,0.001]
[1764632704944,7.70076747,2811.9,2811.8,0.001]
[1764632710582,10.81594134,2811.9,2811.8,0.001]
[1764632710982,1.33513591,2811.9,2811.8,0.001]
[1764632711180,1.89913591,2811.9,2811.8,0.001]
[1764632711360,2.37993591,2811.9,2811.8,0.001]
[1764632712180,5.93625014,2811.9,2811.8,0.001]
[1764632712379,7.37195171,2811.9,2811.8,0.001]
[1764632714596,12.23644291,2811.9,2811.8,0.001]
[1764632715499,7.37195171,2811.9,2811.8,0.001]
[1764632718668,2.40699568,2811.9,2811.8,0.001]
[1764632718869,2.40699568,2811.9,2811.8,0.4959]
[1764632718870,0.566,2811.9,2811.8,0.4959]
[1764632719675,0.405504,2811.8,2811.5,0.001]
[1764632719874,5.78949352,2811.3,2811.2,0.001]
[1764632720095,0.564,2811.3,2811.2,0.001]
[1764632720300,0.564,2811.3,2811.2,0.4959]
[1764632724094,5.4284912,2811.3,2811.2,0.4959]
[1764632727703,0.564,2811.3,2811.2,0.9479]
[1764632729365,4.8644912,2811.5,2811.2,4.50509779]
[1764632729565,4.8644912,2811.5,2811.4,0.4949]
[1764632729764,5.4294912,2811.5,2811.4,0.4949]
[1764632730685,0.3638418,2811.6,2811.4,0.4949]
[1764632730888,1.08943591,2811.7,2811.5,0.4685]
[1764632731079,1.08943591,2811.7,2811.6,0.4685]
[1764632731280,1.65443591,2811.7,2811.6,0.4685]
[1764632732097,0.565,2811.8,2811.6,0.9651]
[1764632732262,0.565,2811.8,2811.7,4.5216672]
[1764632732468,0.565,2811.8,2811.7,0.9651]
[1764632733104,0.565,2811.8,2811.7,4.5216672]
[1764632733996,0.565,2811.8,2811.7,0.9651]
[1764632734212,5.793333,2811.8,2811.3,0.4966]
[1764632734395,5.793333,2811.8,2811.2,0.001]
[1764632734396,4.8644912,2811.4,2811.2,3.55818797]
[1764632734573,5.228333,2811.4,2811.2,3.55818797]
[1764632734772,4.8644912,2811.4,2811.3,0.4685]
[1764632735104,5.228333,2811.4,2811.3,0.4685]
[1764632735309,4.8644912,2811.4,2811.3,0.4685]
[1764632736595,0.3638418,2811.3,2811.2,0.001]
[1764632736899,0.3638418,2811.3,2811.2,3.55819977]
[1764632737123,5.4294912,2811.4,2811.2,3.55819977]
[1764632737327,5.4294912,2811.4,2811.3,0.4685]
[1764632739226,0.565,2811.4,2811.3,0.4685]
[1764632740122,0.565,2811.4,2811.2,0.001]
[1764632740123,0.3638418,2811.3,2811.2,0.001]
[1764632740636,0.3638418,2811.3,2811.2,0.4695]
[1764632741130,0.6396418,2811.3,2811.2,0.001]
[1764632741938,2.11287145,2811.3,2811.2,0.001]
[1764632742140,11.26003,2811.3,2811.2,0.001]
[1764632742300,6.3955388,2811.3,2811.2,0.001]
[1764632743418,11.26003,2811.3,2811.2,0.001]
[1764632743624,6.3955388,2811.3,2811.2,0.001]
[1764632743922,11.26003,2811.3,2811.2,0.001]
[1764632745541,16.1245212,2811.3,2811.2,0.001]
[1764632746547,16.5300252,2811.3,2811.2,0.001]
[1764632746744,5.567497,2811.3,2811.2,0.001]
[1764632746955,11.82503,2811.3,2811.2,0.001]
[1764632747319,16.6895212,2811.3,2811.2,0.001]
[1764632748440,11.82503,2811.3,2811.2,0.001]
[1764632750336,11.98238172,2811.3,2811.2,0.001]
[1764632753657,1.37287145,2811.3,2811.2,0.4794]
[1764632753961,0.9288418,2811.3,2811.2,0.9717]
[1764632754334,0.9288418,2811.3,2811.2,0.4794]
[1764632756072,0.002,2811.8,2811.2,4.03659977]
[1764632756272,0.0997041,2811.3,2811.2,0.4933]
[1764632756582,0.0997041,2811.3,2811.2,0.001]
[1764632756781,0.6647041,2811.3,2811.2,0.001]
[1764632757285,0.9234041,2811.3,2811.2,0.001]
[1764632757785,0.6647041,2811.3,2811.2,0.4794]
[1764632759987,0.6647041,2811.3,2811.2,0.001]
[1764632760152,0.9256041,2811.3,2811.2,0.001]
[1764632760354,5.43331694,2811.3,2811.2,0.001]
[1764632760580,6.63781105,2811.3,2811.2,0.001]
[1764632762464,0.6647041,2811.3,2811.2,0.9717]
[1764632765587,0.6647041,2811.3,2811.2,0.4794]
[1764632765895,0.9234041,2811.3,2811.2,0.001]
[1764632766073,0.6647041,2811.3,2811.2,0.4794]
[1764632768165,0.6647041,2811.3,2811.2,0.9717]
[1764632769593,0.6647041,2811.3,2811.2,0.4794]
[1764632770072,0.002,2811.5,2811.2,0.9717]
[1764632770410,0.3658418,2811.5,2811.4,0.4784]
[1764632770910,0.3658418,2811.5,2811.4,0.9707]
[1764632771127,0.9308418,2811.5,2811.4,0.9707]
[1764632772327,0.3638418,2811.3,2811.2,0.001]
[1764632772830,0.3638418,2811.3,2811.2,0.4718]
[1764632773028,5.02184292,2811.4,2811.2,0.4718]
[1764632773526,0.567,2811.5,2811.3,0.4708]
[1764632773726,0.002,2811.5,2811.4,0.4708]
[1764632773896,0.567,2811.5,2811.4,0.9702]
[1764632774097,0.002,2811.5,2811.4,4.52714671]
[1764632774326,0.567,2811.5,2811.4,5.33566772]
[1764632780315,0.002,2811.5,2811.4,5.33566772]
[1764632787343,0.002,2811.5,2811.4,6.06126183]
[1764632790775,0.002,2811.5,2811.4,6.62526183]
[1764632792047,0.002,2811.5,2811.4,6.62626183]
[1764632792666,0.002,2811.5,2811.4,6.06226183]
[1764632792852,0.2575,2811.5,2811.4,3.55794671]
[1764632794371,0.2575,2811.5,2811.4,0.001]
[1764632794569,0.002,2811.5,2811.4,0.001]
[1764632794999,0.002,2811.5,2811.4,0.4668]
[1764632795306,0.2575,2811.5,2811.4,0.001]
[1764632797297,0.002,2811.5,2811.4,0.001]
[1764632797979,4.2986202,2811.5,2811.4,0.001]
[1764632798184,5.08415243,2811.5,2811.4,0.001]
[1764632798394,6.21525054,2811.5,2811.4,0.001]
[1764632798585,3.55707324,2811.3,2811.2,0.001]
[1764632798782,3.56087324,2811.3,2811.2,0.001]
[1764632799107,4.04747324,2811.3,2811.2,0.001]
[1764632799293,5.2401169,2811.3,2811.2,0.001]
[1764632799493,5.96571101,2811.3,2811.2,0.001]
[1764632801228,6.52971101,2811.3,2811.2,0.001]
[1764632801526,6.93521501,2811.3,2811.2,0.001]
[1764632802095,6.93521501,2811.3,2811.1,0.001]
[1764632802096,1.13109811,2811.2,2811.1,0.001]
[1764632802296,4.06827517,2811.2,2811.1,0.001]
[1764632803203,7.62547494,2811.2,2811.1,0.001]
[1764632803408,8.09917494,2811.2,2811.1,0.001]
[1764632804406,7.62547494,2811.2,2811.1,0.001]
[1764632805422,7.62547494,2811.2,2810.9,0.001]
[1764632805423,11.18267471,2811.2,2810.9,0.001]
[1764632805737,0.438804,2811.0,2809.4,0.6563]
[1764632805918,0.2486,2809.8,2809.4,0.6563]
[1764632806103,0.8126,2809.8,2809.4,0.6563]
[1764632806305,0.8126,2809.8,2809.5,0.4737]
[1764632806513,0.8126,2809.8,2809.5,4.0329319]
[1764632806919,0.8126,2809.8,2809.5,3.5592319]
[1764632807204,0.8126,2809.8,2809.5,7.11858409]
[1764632807404,0.8126,2809.8,2809.5,8.72572039]
[1764632808010,0.564,2809.8,2809.7,0.4653]
[1764632808627,0.8151,2809.8,2809.5,5.1663682]
[1764632808837,0.564,2809.8,2809.5,8.72572039]
[1764632809036,0.564,2809.8,2809.7,0.4653]
[1764632809512,0.564,2809.8,2809.7,0.939]
[1764632810225,0.405504,2810.8,2809.7,0.939]
[1764632810423,4.84873572,2810.5,2809.8,0.4737]
[1764632810630,5.30803572,2810.5,2809.7,4.49807356]
[1764632810936,1.34590711,2810.4,2809.7,4.49807356]
[1764632811641,3.55777976,2810.8,2810.3,0.4653]
[1764632811843,0.565,2810.7,2810.3,0.4653]
[1764632812240,1.0243,2810.7,2810.3,0.4653]
[1764632812739,4.58216235,2810.7,2810.3,0.4653]
[1764632812920,0.4593,2810.6,2810.1,4.03225218]
[1764632814343,0.4593,2810.6,2810.1,0.4737]
[1764632814542,0.4593,2810.6,2810.1,4.03226364]
[1764632817857,0.356,2810.2,2810.1,3.55856364]
[1764632818045,0.921,2810.2,2810.1,3.55856364]
[1764632818227,1.1721,2810.2,2810.1,3.55856364]
[1764632818631,0.356,2810.1,2810.0,3.55865748]
[1764632819155,0.356,2810.1,2810.0,4.02395748]
[1764632820153,0.356,2810.1,2810.0,4.02401886]
[1764632820357,0.356,2810.1,2809.5,3.55925446]
[1764632820358,0.7083,2810.1,2809.5,3.55935219]
[1764632820559,0.356,2809.6,2809.5,3.55935219]
[1764632820856,0.565,2809.7,2809.5,7.5402696]
[1764632821059,0.565,2809.7,2809.5,7.11870438]
[1764632821359,0.565,2809.7,2809.6,0.939]
[1764632822433,0.921,2809.7,2809.6,0.939]
[1764632822634,4.87271057,2810.4,2809.6,0.939]
[1764632822833,0.356,2810.0,2809.9,0.4653]
[1764632823066,0.356,2810.0,2809.9,4.02414551]
[1764632823362,0.356,2810.0,2809.9,4.49784551]
[1764632823570,0.356,2810.0,2809.9,0.939]
[1764632823796,0.356,2810.0,2809.9,0.4653]
[1764632823959,0.356,2810.0,2809.9,4.02414551]
[1764632825448,0.356,2810.0,2806.8,6.17397969]
[1764632825449,2.05666405,2810.0,2809.0,0.1991]
[1764632825654,0.72559411,2809.5,2808.8,0.1826]
[1764632825853,0.09989888,2809.3,2809.1,0.4737]
[1764632826054,0.09989888,2809.3,2809.2,0.1826]
[1764632826253,0.09989888,2809.6,2809.2,0.6479]
[1764632826457,0.565,2809.4,2809.3,0.4737]
[1764632826888,0.565,2809.4,2809.3,0.939]
[1764632827270,0.565,2809.4,2809.3,4.49860559]
[1764632828080,6.14601057,2809.4,2808.8,0.1826]